bitfinex/quotes_BTCUSD_20250903
["timestamp","ask_amount","ask_price","bid_price","bid_amount"]
[1756908678889,2.67441661,111900.0,111890.0,4.666e-05]
[1756908679734,2.48608384,111900.0,111890.0,4.666e-05]
[1756908679929,2.65076384,111900.0,111890.0,4.666e-05]
[1756908680132,2.62668417,111900.0,111890.0,4.666e-05]
[1756908680578,2.60352417,111900.0,111890.0,4.666e-05]
[1756908680738,2.59452417,111900.0,111890.0,4.666e-05]
[1756908681209,2.59448417,111900.0,111890.0,4.666e-05]
[1756908681539,2.31380154,111900.0,111890.0,4.666e-05]
[1756908681956,2.14610812,111900.0,111890.0,4.666e-05]
[1756908682366,2.31078812,111900.0,111890.0,4.666e-05]
[1756908682572,2.31078812,111900.0,111890.0,0.00199666]
[1756908682573,1.40189543,111900.0,111890.0,0.00199666]
[1756908682784,1.61653543,111900.0,111890.0,0.00199666]
[1756908682983,2.0580283,111900.0,111890.0,0.00199666]
[1756908683186,2.31074812,111900.0,111890.0,4.666e-05]
[1756908683389,2.30774812,111900.0,111890.0,4.666e-05]
[1756908683818,2.30574812,111900.0,111890.0,4.666e-05]
[1756908684236,2.29969812,111900.0,111890.0,0.00199666]
[1756908684609,2.00114213,111900.0,111890.0,0.00199666]
[1756908684900,1.54077826,111900.0,111890.0,0.00199666]
[1756908685113,2.21405213,111900.0,111890.0,4.666e-05]
[1756908685320,2.21304213,111900.0,111890.0,0.00199666]
[1756908685536,1.37781826,111900.0,111890.0,0.00494666]
[1756908685749,1.54289826,111900.0,111890.0,0.00494666]
[1756908685951,1.30687944,111900.0,111890.0,0.00494666]
[1756908686163,1.49289826,111900.0,111890.0,0.00494666]
[1756908686406,1.47195944,111900.0,111890.0,0.00494666]
[1756908686870,1.61387543,111900.0,111890.0,0.00199666]
[1756908687107,0.99866156,111900.0,111890.0,4.666e-05]
[1756908687322,2.2360593,111900.0,111890.0,0.00199666]
[1756908687943,2.1860593,111900.0,111890.0,0.00199666]
[1756908688179,0.85173557,111900.0,111890.0,0.00494666]
[1756908688411,0.85237557,111900.0,111890.0,0.00494666]
[1756908688635,0.83284241,111900.0,111890.0,0.00494666]
[1756908688845,1.42618915,111900.0,111890.0,0.00494666]
[1756908689251,1.44546156,111900.0,111890.0,0.00494666]
[1756908689476,1.44246156,111900.0,111890.0,0.00494666]
[1756908689893,1.44446156,111900.0,111890.0,0.00494666]
[1756908690101,1.44426156,111900.0,111890.0,0.00494666]
[1756908690303,0.35654144,111900.0,111890.0,0.00494666]
[1756908690523,0.690291,111900.0,111890.0,0.00494666]
[1756908690762,0.180731,111900.0,111890.0,0.40494666]
[1756908691010,0.686291,111900.0,111890.0,0.40494666]
[1756908691243,0.688291,111900.0,111890.0,0.40494666]
[1756908691444,0.684291,111900.0,111890.0,0.40494666]
[1756908691890,0.685291,111900.0,111890.0,0.40494666]
[1756908692086,1.30551487,111900.0,111890.0,0.40494666]
[1756908692329,0.685291,111900.0,111890.0,0.40494666]
[1756908692659,1.30551487,111900.0,111890.0,0.40494666]
[1756908693077,0.685291,111900.0,111890.0,0.40494666]
[1756908693294,1.30551487,111900.0,111890.0,0.40494666]
[1756908693508,1.30651487,111900.0,111890.0,0.40494666]
[1756908693914,1.30651487,111900.0,111890.0,0.00494666]
[1756908694354,1.30651487,111900.0,111890.0,0.40494666]
[1756908694591,1.40039086,111900.0,111890.0,0.00199666]
[1756908694799,2.02366473,111900.0,111890.0,4.666e-05]
[1756908694986,2.02993291,111900.0,111890.0,4.666e-05]
[1756908695225,2.05680708,111900.0,111890.0,4.666e-05]
[1756908695432,2.14872317,111900.0,111890.0,4.666e-05]
[1756908695906,2.19872317,111900.0,111890.0,4.666e-05]
[1756908696116,2.21797987,111900.0,111890.0,4.666e-05]
[1756908696726,2.23891869,111900.0,111890.0,4.666e-05]
[1756908696946,2.18891869,111900.0,111890.0,4.666e-05]
[1756908697156,2.18791869,111900.0,111890.0,4.666e-05]
[1756908697358,2.23791869,111900.0,111890.0,4.666e-05]
[1756908697562,2.23891869,111900.0,111890.0,4.666e-05]
[1756908697769,0.90655496,111900.0,111890.0,4.666e-05]
[1756908697981,2.1500027,111900.0,111890.0,4.666e-05]
[1756908699075,1.28827001,111900.0,111890.0,0.00523666]
[1756908699283,1.42806503,111900.0,111890.0,0.00523666]
[1756908699966,1.26274503,111900.0,111890.0,0.00523666]
[1756908700205,0.183731,111900.0,111890.0,0.00523666]
[1756908700440,0.346931,111900.0,111890.0,0.00523666]
[1756908700673,0.686931,111900.0,111890.0,0.00523666]
[1756908700897,1.30515487,111900.0,111890.0,0.00523666]
[1756908701126,1.37970228,111900.0,111890.0,0.00523666]
[1756908701400,1.38070228,111900.0,111890.0,0.00523666]
[1756908701641,1.37870228,111900.0,111890.0,0.00523666]
[1756908702126,1.37970228,111900.0,111890.0,0.00523666]
[1756908702311,1.37870228,111900.0,111890.0,0.00523666]
[1756908702727,1.37970228,111900.0,111890.0,0.00523666]
[1756908702929,1.30515487,111900.0,111890.0,0.00523666]
[1756908703139,1.30722487,111900.0,111890.0,0.00220666]
[1756908703558,1.30515487,111900.0,111890.0,0.00220666]
[1756908703895,1.30515487,111900.0,111890.0,0.00523666]
[1756908704450,0.684931,111900.0,111890.0,0.00523666]
[1756908704661,1.30515487,111900.0,111890.0,0.00523666]
[1756908705262,0.684931,111900.0,111890.0,0.00523666]
[1756908705459,1.30722487,111900.0,111890.0,0.00220666]
[1756908705628,1.98369955,111900.0,111890.0,4.666e-05]
[1756908705838,2.07561554,111900.0,111890.0,4.666e-05]
[1756908706051,2.09655436,111900.0,111890.0,4.666e-05]
[1756908707037,2.10282112,111900.0,111890.0,4.666e-05]
[1756908707265,2.12207526,111900.0,111890.0,4.666e-05]
[1756908707453,2.12207527,111900.0,111890.0,4.666e-05]
[1756908707678,2.17307527,111900.0,111890.0,4.666e-05]
[1756908708020,2.17207527,111900.0,111890.0,4.666e-05]
[1756908708445,2.18979179,111900.0,111890.0,4.666e-05]
[1756908709204,2.23979179,111900.0,111890.0,4.666e-05]
[1756908709628,1.86902067,111900.0,111890.0,4.666e-05]
[1756908711237,1.93774067,111900.0,111890.0,4.666e-05]
[1756908711613,1.96037067,111900.0,111890.0,4.666e-05]
[1756908711822,1.95837067,111900.0,111890.0,4.666e-05]
[1756908712028,1.96237067,111900.0,111890.0,4.666e-05]
[1756908712242,1.96537067,111900.0,111890.0,4.666e-05]
[1756908712887,1.77754067,111900.0,111890.0,4.666e-05]
[1756908713218,1.89084986,111900.0,111890.0,4.666e-05]
[1756908713668,1.88584986,111900.0,111890.0,4.666e-05]
[1756908714292,1.9068421,111900.0,111890.0,4.666e-05]
[1756908714504,1.9334721,111900.0,111890.0,4.666e-05]
[1756908714740,1.96116797,111900.0,111890.0,4.666e-05]
[1756908714951,2.02538809,111900.0,111890.0,4.666e-05]
[1756908715159,2.01512133,111900.0,111890.0,4.666e-05]
[1756908715370,2.23413936,111900.0,111890.0,4.666e-05]
[1756908715790,2.21014712,111900.0,111890.0,4.666e-05]
[1756908716000,1.39054241,111900.0,111890.0,4.666e-05]
[1756908716214,2.26021903,111900.0,111890.0,4.666e-05]
[1756908716425,2.25521903,111900.0,111890.0,4.666e-05]
[1756908716600,2.26121903,111900.0,111890.0,4.666e-05]
[1756908717221,2.21314712,111900.0,111890.0,4.666e-05]
[1756908717609,2.23721906,111900.0,111890.0,4.666e-05]
[1756908718000,2.21252319,111900.0,111890.0,4.666e-05]
[1756908718413,2.21216319,111900.0,111890.0,4.666e-05]
[1756908718622,2.20916319,111900.0,111890.0,4.666e-05]
[1756908718861,2.04700319,111900.0,111890.0,4.666e-05]
[1756908719077,2.03337319,111900.0,111890.0,4.666e-05]
[1756908719279,2.16648525,111900.0,111890.0,4.666e-05]
[1756908719904,2.15748525,111900.0,111890.0,4.666e-05]
[1756908720110,2.18518112,111900.0,111890.0,4.666e-05]
[1756908720311,2.15748525,111900.0,111890.0,4.666e-05]
[1756908720516,1.99232525,111900.0,111890.0,4.666e-05]
[1756908720722,2.15740525,111900.0,111890.0,4.666e-05]
[1756908720933,1.96825331,111900.0,111890.0,4.666e-05]
[1756908721185,2.13329331,111900.0,111890.0,4.666e-05]
[1756908721601,2.15436525,111900.0,111890.0,4.666e-05]
[1756908721813,1.99520525,111900.0,111890.0,4.666e-05]
[1756908722016,1.97213331,111900.0,111890.0,4.666e-05]
[1756908722219,1.97517331,111900.0,111890.0,0.00204666]
[1756908722431,1.80721331,111900.0,111890.0,0.00420666]
[1756908722658,1.88029732,111900.0,111890.0,0.00420666]
[1756908722872,1.87822732,111900.0,111890.0,0.00420666]
[1756908723086,1.87822732,111900.0,111890.0,0.00723666]
[1756908723087,1.66322732,111900.0,111890.0,0.00723666]
[1756908723295,1.82818732,111900.0,111890.0,0.00723666]
[1756908723510,1.82818732,111900.0,111890.0,0.00220666]
[1756908723733,1.92217331,111900.0,111890.0,0.00220666]
[1756908723928,1.92521331,111900.0,111890.0,4.666e-05]
[1756908724128,1.92421331,111900.0,111890.0,4.666e-05]
[1756908724553,1.92520664,111900.0,111890.0,4.666e-05]
[1756908724764,1.92216664,111900.0,111890.0,4.666e-05]
[1756908724982,1.92520664,111900.0,111890.0,4.666e-05]
[1756908725817,1.83025065,111900.0,111890.0,0.00220666]
[1756908726276,1.83329065,111900.0,111890.0,4.666e-05]
[1756908727433,1.8140365,111900.0,111890.0,4.666e-05]
[1756908727609,1.83329133,111900.0,111890.0,4.666e-05]
[1756908727843,1.83025133,111900.0,111890.0,0.00220666]
[1756908728051,1.92216732,111900.0,111890.0,4.666e-05]
[1756908728269,1.92520732,111900.0,111890.0,4.666e-05]
[1756908728696,2.00290319,111900.0,111890.0,4.666e-05]
[1756908728927,2.19895596,111900.0,111890.0,4.666e-05]
[1756908729147,2.25507244,111900.0,111890.0,4.666e-05]
[1756908729364,4.70420706,111900.0,111890.0,4.666e-05]
[1756908729574,1.45941036,111860.0,111850.0,0.07394631]
[1756908729790,1.02360224,111860.0,111850.0,0.07408644]
[1756908730000,1.89327886,111860.0,111850.0,0.07607644]
[1756908730184,1.92016645,111860.0,111850.0,0.07607644]
[1756908730413,1.92016645,111860.0,111850.0,0.07918644]
[1756908730626,1.77825046,111860.0,111850.0,0.07918644]
[1756908730837,1.59275164,111860.0,111850.0,0.08118644]
[1756908731035,1.74047512,111860.0,111850.0,0.00764013]
[1756908731664,1.58484608,111860.0,111850.0,0.00764013]
[1756908731859,1.74928608,111860.0,111850.0,0.00764013]
[1756908732308,0.87960946,111860.0,111850.0,0.00764013]
[1756908732514,1.84120207,111860.0,111850.0,0.00764013]
[1756908733374,1.74920608,111860.0,111850.0,0.00764013]
[1756908734254,1.76593111,111860.0,111850.0,0.00764013]
[1756908734463,1.79189993,111860.0,111850.0,1e-08]
[1756908734667,1.79189993,111860.0,111850.0,0.00100001]
[1756908735305,1.79817445,111860.0,111850.0,0.00100001]
[1756908735530,1.89009044,111860.0,111850.0,0.00100001]
[1756908735742,1.63381445,111860.0,111850.0,0.00100001]
[1756908735947,1.79528445,111860.0,111850.0,0.00100001]
[1756908736150,1.79825445,111860.0,111850.0,0.00100001]
[1756908736586,0.92560783,111860.0,111850.0,0.00299001]
[1756908736786,1.88720044,111860.0,111850.0,0.00299001]
[1756908737381,1.87910592,111860.0,111850.0,0.00610001]
[1756908737512,0.71516946,111860.0,111850.0,0.00610001]
[1756908737737,0.51288187,111860.0,111850.0,0.00610001]
[1756908738137,1.72255849,111860.0,111850.0,0.00610001]
[1756908738725,1.4660425,111860.0,111850.0,0.00610001]
[1756908738909,1.6306025,111860.0,111850.0,0.00510001]
[1756908739902,0.76076588,111860.0,111850.0,0.00510001]
[1756908740067,0.76076588,111860.0,111850.0,0.0081]
[1756908740292,0.34,111860.0,111850.0,0.1869109]
[1756908740503,0.17879319,111870.0,111850.0,0.1869109]
[1756908740748,0.34511329,111870.0,111860.0,0.00311]
[1756908740919,1.55278981,111870.0,111860.0,0.00311]
[1756908741125,1.55278981,111870.0,111860.0,0.0051]
[1756908741323,1.69589951,111870.0,111860.0,0.0051]
[1756908741564,0.17879492,111860.0,111850.0,0.403]
[1756908741765,1.64570753,111860.0,111850.0,0.0091]
[1756908742027,0.77603091,111860.0,111850.0,0.0091]
[1756908742328,0.77599091,111860.0,111850.0,0.0091]
[1756908742550,0.68403492,111860.0,111850.0,0.0101]
[1756908743047,0.68403492,111860.0,111850.0,0.0091]
[1756908743408,0.68403492,111860.0,111850.0,0.0111]
[1756908743604,0.68303492,111860.0,111850.0,0.0071]
[1756908743818,1.55271154,111860.0,111850.0,0.0071]
[1756908744034,1.73860352,111860.0,111850.0,0.00399]
[1756908744197,0.8668669,111860.0,111850.0,0.00399]
[1756908744405,1.73654352,111860.0,111850.0,0.00399]
[1756908744598,1.73860352,111860.0,111850.0,0.00399]
[1756908744853,1.74157352,111860.0,111850.0,0.002]
[1756908745052,1.74257352,111860.0,111850.0,0.006]
[1756908745630,1.74257352,111860.0,111850.0,0.004]
[1756908746045,1.74257352,111860.0,111850.0,0.006]
[1756908746627,1.74257352,111860.0,111850.0,0.004]
[1756908747005,0.1788109,111850.0,111840.0,0.0004]
[1756908747196,1.8076396,111850.0,111840.0,0.00044658]
[1756908747441,1.8076995,111850.0,111840.0,0.00044658]
[1756908747648,1.8106695,111850.0,111840.0,0.00044658]
[1756908749844,1.8106695,111850.0,111840.0,0.00244658]
[1756908750291,1.8106695,111850.0,111840.0,0.00044658]
[1756908750711,1.83260832,111850.0,111840.0,0.00444658]
[1756908751096,1.85949584,111850.0,111840.0,0.00444658]
[1756908751314,1.88250389,111850.0,111840.0,0.00444658]
[1756908751948,1.88250389,111850.0,111840.0,1e-08]
[1756908752159,1.97947493,111850.0,111840.0,1e-08]
[1756908752369,1.10979831,111850.0,111840.0,1e-08]
[1756908752563,1.13231831,111850.0,111840.0,1e-08]
[1756908753223,0.53981369,111810.0,111800.0,1e-08]
[1756908753435,0.58982969,111800.0,111790.0,1e-08]
[1756908753641,1.57318543,111800.0,111790.0,0.00833876]
[1756908753863,0.75595647,111800.0,111790.0,0.00833876]
[1756908754014,1.57563309,111800.0,111790.0,0.00833876]
[1756908754226,1.88182908,111800.0,111790.0,1e-08]
[1756908754430,1.89087303,111800.0,111790.0,1e-08]
[1756908754642,1.72663303,111800.0,111790.0,1e-08]
[1756908754857,1.02131641,111800.0,111790.0,1e-08]
[1756908755292,0.53984569,111790.0,111780.0,1e-08]
[1756908755419,0.98864677,111790.0,111780.0,1e-08]
[1756908755620,0.99363677,111790.0,111780.0,1e-08]
[1756908755867,0.99449613,111790.0,111780.0,1e-08]
[1756908756068,1.86417275,111790.0,111780.0,1e-08]
[1756908756271,0.5189549,111760.0,111750.0,0.07394631]
[1756908756489,1.765363,111760.0,111750.0,0.07408641]
[1756908756732,1.76784633,111760.0,111750.0,0.07408641]
[1756908756934,1.76784633,111760.0,111750.0,0.0025301]
[1756908757145,1.76784633,111760.0,111750.0,0.0005401]
[1756908757340,1.7955422,111760.0,111750.0,0.0005401]
[1756908757547,1.8224505,111760.0,111750.0,0.0025301]
[1756908757980,1.84635932,111760.0,111750.0,0.0005401]
[1756908758199,1.91989209,111760.0,111750.0,1e-08]
[1756908758405,1.94155283,111760.0,111750.0,1e-08]
[1756908758612,1.9702487,111760.0,111750.0,1e-08]
[1756908758817,1.10057208,111760.0,111750.0,1e-08]
[1756908759027,0.17898693,111740.0,111730.0,0.0004]
[1756908759250,0.50674021,111740.0,111730.0,0.00048357]
[1756908759453,0.50724739,111740.0,111730.0,0.00048357]
[1756908759666,0.89911208,111740.0,111730.0,0.00048357]
[1756908759875,1.7687887,111740.0,111730.0,0.00048357]
[1756908760077,1.6047487,111740.0,111730.0,0.00048357]
[1756908760278,1.73782283,111740.0,111730.0,0.00048357]
[1756908760686,1.57382283,111740.0,111730.0,0.00048357]
[1756908760887,1.73786283,111740.0,111730.0,0.00259357]
[1756908761112,1.57382283,111740.0,111730.0,0.00259357]
[1756908761288,1.73790283,111740.0,111730.0,0.00259357]
[1756908761491,0.86922621,111740.0,111730.0,0.00759357]
[1756908761697,0.6123002,111740.0,111730.0,0.01053357]
[1756908761892,1.64605682,111740.0,111730.0,0.01053357]
[1756908762101,1.64605682,111740.0,111730.0,0.01253357]
[1756908762945,1.48197682,111740.0,111730.0,0.01253357]
[1756908763365,1.64613682,111740.0,111730.0,0.01253357]
[1756908763572,1.57389281,111740.0,111730.0,0.01253357]
[1756908763797,1.73805281,111740.0,111730.0,0.01253357]
[1756908764966,0.86833619,111740.0,111730.0,0.01253357]
[1756908765338,0.86817619,111740.0,111730.0,0.01253357]
[1756908765525,1.73785281,111740.0,111730.0,0.01253357]
[1756908765956,1.73996281,111740.0,111730.0,0.00748357]
[1756908766152,1.7918275,111740.0,111730.0,0.00748357]
[1756908766812,1.79931107,111740.0,111730.0,0.00748357]
[1756908766996,0.53994177,111730.0,111720.0,0.0004]
[1756908767171,1.85422624,111730.0,111720.0,0.0004]
[1756908767385,1.85422624,111730.0,111710.0,0.0004]
[1756908767386,0.53995779,111720.0,111710.0,0.0004]
[1756908767586,1.69352627,111720.0,111710.0,0.0004]
[1756908767745,1.72272674,111720.0,111710.0,0.0004]
[1756908768601,0.17906706,111690.0,111680.0,0.0004]
[1756908768804,1.71561977,111690.0,111680.0,0.0004]
[1756908769090,1.71392349,111690.0,111680.0,0.00251]
[1756908769282,1.54976349,111690.0,111680.0,0.00251]
[1756908769486,1.64167948,111690.0,111680.0,0.00251]
[1756908769791,1.80575948,111690.0,111680.0,0.00545]
[1756908770036,1.64378948,111690.0,111680.0,0.00297591]
[1756908770190,1.80567948,111690.0,111680.0,0.00297591]
[1756908770824,1.81454503,111690.0,111680.0,0.00297591]
[1756908771034,1.81454503,111690.0,111680.0,0.00397591]
[1756908771233,1.81988503,111690.0,111680.0,0.00186591]
[1756908771468,1.57185139,111690.0,111680.0,0.00186591]
[1756908771723,1.56985139,111690.0,111680.0,0.00186591]
[1756908772129,1.57508139,111690.0,111680.0,0.00186591]
[1756908773076,1.57308139,111690.0,111680.0,0.00086591]
[1756908773291,1.57508139,111690.0,111680.0,0.00186591]
[1756908773936,1.57508139,111690.0,111680.0,0.00086591]
[1756908774160,1.57508139,111690.0,111680.0,0.00186591]
[1756908774617,1.57493094,111690.0,111680.0,0.00186591]
[1756908775242,1.57170094,111690.0,111680.0,0.00186591]
[1756908775468,1.57493094,111690.0,111680.0,0.00186591]
[1756908776118,1.59586976,111690.0,111680.0,0.00186591]
[1756908776338,1.62356563,111690.0,111680.0,0.00186591]
[1756908776560,1.59562976,111690.0,111680.0,0.00186591]
[1756908777229,0.51908309,111680.0,111670.0,0.00048]
[1756908777439,1.48946805,111680.0,111670.0,0.00048]
[1756908777649,1.54480805,111680.0,111670.0,0.00048]
[1756908777861,1.54511111,111680.0,111670.0,0.00048]
[1756908778304,0.20005399,111660.0,111650.0,0.0004]
[1756908778528,2.11027594,111660.0,111650.0,0.0004]
[1756908778745,2.20782739,111660.0,111650.0,0.0004]
[1756908778970,2.32554969,111660.0,111650.0,1e-08]
[1756908779211,2.51644762,111660.0,111650.0,1e-08]
[1756908779431,2.54334865,111660.0,111650.0,1e-08]
[1756908779695,1.22964039,111660.0,111650.0,1e-08]
[1756908779965,2.47562635,111660.0,111650.0,1e-08]
[1756908780224,0.86720105,111660.0,111650.0,1e-08]
[1756908780452,1.62952403,111660.0,111650.0,1e-08]
[1756908780678,0.84289105,111660.0,111650.0,1e-08]
[1756908780900,1.61170544,111660.0,111650.0,0.00211001]
[1756908781124,0.98871246,111660.0,111650.0,0.00211001]
[1756908781349,1.62832031,111660.0,111650.0,0.00211001]
[1756908781578,1.00332733,111660.0,111650.0,0.00211001]
[1756908781816,1.46268031,111660.0,111650.0,0.00211001]
[1756908782042,1.60755544,111660.0,111650.0,0.00211001]
[1756908782263,1.62718268,111660.0,111650.0,0.00211001]
[1756908782482,1.62629268,111660.0,111650.0,1e-08]
[1756908782701,1.62418268,111660.0,111650.0,0.00211001]
[1756908782910,1.62729268,111660.0,111650.0,0.00211001]
[1756908783121,1.62418268,111660.0,111650.0,0.00211001]
[1756908783366,1.62331974,111660.0,111650.0,0.00211001]
[1756908783574,1.62531974,111660.0,111650.0,0.00211001]
[1756908783788,1.62842974,111660.0,111650.0,0.00211001]
[1756908784005,1.00543676,111660.0,111650.0,0.00211001]
[1756908784230,1.44066092,111660.0,111650.0,0.00505001]
[1756908784450,1.60442092,111660.0,111650.0,0.00211001]
[1756908784706,1.60434092,111660.0,111650.0,0.00211001]
[1756908785151,1.62738974,111660.0,111650.0,1e-08]
[1756908785356,1.63061974,111660.0,111650.0,1e-08]
[1756908785994,1.62738974,111660.0,111650.0,1e-08]
[1756908786216,1.00439676,111660.0,111650.0,0.00211001]
[1756908786421,1.62738974,111660.0,111650.0,1e-08]
[1756908786721,1.63061974,111660.0,111650.0,1e-08]
[1756908787166,2.33130859,111660.0,111650.0,1e-08]
[1756908787372,0.17917935,111620.0,111610.0,0.07648631]
[1756908787588,1.50649799,111620.0,111610.0,0.07859631]
[1756908787776,1.50477222,111620.0,111610.0,0.07859631]
[1756908787999,0.17919541,111610.0,111600.0,0.0004]
[1756908788210,0.4346714,111610.0,111600.0,0.00334]
[1756908788412,1.09993525,111610.0,111600.0,0.00545]
[1756908788821,1.09993525,111610.0,111600.0,0.00553336]
[1756908789029,1.44193525,111610.0,111600.0,0.00048336]
[1756908789245,1.47500396,111610.0,111600.0,0.00048336]
[1756908790091,0.84907098,111610.0,111600.0,0.00258336]
[1756908790297,1.47700396,111610.0,111600.0,0.00248336]
[1756908790507,1.47500396,111610.0,111600.0,0.00248336]
[1756908790919,0.67922106,111610.0,111600.0,0.00258336]
[1756908791127,1.46589404,111610.0,111600.0,0.00258336]
[1756908791327,1.45124514,111610.0,111600.0,0.00358336]
[1756908791546,1.28756514,111610.0,111600.0,0.00358336]
[1756908791745,1.45414514,111610.0,111600.0,0.00048336]
[1756908792158,1.44920514,111610.0,111600.0,0.00576336]
[1756908792365,1.44920514,111610.0,111600.0,0.00258336]
[1756908792577,1.45320514,111610.0,111600.0,0.00258336]
[1756908792788,1.45120514,111610.0,111600.0,0.00258336]
[1756908793001,0.65338227,111610.0,111600.0,0.00576336]
[1756908793413,0.81898227,111610.0,111600.0,0.00576336]
[1756908793637,1.43997525,111610.0,111600.0,0.00576336]
[1756908794053,1.44397525,111610.0,111600.0,0.00048336]
[1756908794263,1.44397525,111610.0,111600.0,0.00258336]
[1756908794478,1.46785407,111610.0,111600.0,0.00048336]
[1756908794683,1.48450994,111610.0,111600.0,0.00048336]
[1756908794888,1.48450994,111610.0,111600.0,0.00148336]
[1756908795553,0.17925965,111570.0,111560.0,0.05318]
[1756908795776,1.43549904,111570.0,111560.0,0.05014002]
[1756908795982,1.43577385,111570.0,111560.0,0.05847083]
[1756908796203,1.45965267,111570.0,111560.0,0.05847083]
[1756908796629,1.47631335,111570.0,111560.0,0.05847083]
[1756908796840,0.68490037,111570.0,111560.0,0.06057083]
[1756908797050,1.30789335,111570.0,111560.0,0.05542002]
[1756908797285,1.43365385,111570.0,111560.0,0.05542002]
[1756908797536,1.43565385,111570.0,111560.0,0.05224002]
[1756908797751,1.43365385,111570.0,111560.0,0.05224002]
[1756908798173,1.43765385,111570.0,111560.0,0.05014002]
[1756908798625,1.47817697,111570.0,111560.0,0.05014002]
[1756908799241,1.46153267,111570.0,111560.0,0.05114002]
[1756908800997,1.52939383,111570.0,111560.0,0.05114002]
[1756908801228,1.52939383,111570.0,111550.0,1.0]
[1756908801229,1.7862005,111560.0,111550.0,1.0]
[1756908801450,2.38270087,111560.0,111550.0,0.52672881]
[1756908801671,2.38920186,111560.0,111550.0,0.18104551]
[1756908801901,2.68696463,111560.0,111550.0,0.17877404]
[1756908802140,2.68696463,111560.0,111550.0,0.09229311]
[1756908802141,2.70612612,111560.0,111550.0,0.09229311]
[1756908802373,0.59026276,111530.0,111520.0,8e-05]
[1756908802613,1.64600024,111530.0,111520.0,0.00020549]
[1756908802826,1.65117271,111530.0,111520.0,0.00020549]
[1756908803252,1.90583941,111530.0,111510.0,1e-08]
[1756908803478,2.34610676,111520.0,111510.0,1e-08]
[1756908803699,1.20629343,111520.0,111510.0,1e-08]
[1756908803952,1.19687617,111520.0,111510.0,1e-08]
[1756908804167,1.20587617,111520.0,111510.0,1e-08]
[1756908804384,1.04187617,111520.0,111510.0,1e-08]
[1756908804607,1.20591617,111520.0,111510.0,1e-08]
[1756908804823,1.19691617,111520.0,111510.0,1e-08]
[1756908805283,1.19991617,111520.0,111510.0,1e-08]
[1756908805492,1.22344894,111520.0,111510.0,1e-08]
[1756908805721,1.22644894,111520.0,111510.0,1e-08]
[1756908805966,1.03887617,111520.0,111510.0,1e-08]
[1756908806222,0.9397273,111520.0,111510.0,1e-08]
[1756908806644,0.71578848,111520.0,111510.0,1e-08]
[1756908806864,0.87110848,111520.0,111510.0,1e-08]
[1756908807092,1.0920473,111520.0,111510.0,1e-08]
[1756908807302,1.1420473,111520.0,111510.0,1e-08]
[1756908807515,1.1460473,111520.0,111510.0,1e-08]
[1756908807738,1.1459673,111520.0,111510.0,1e-08]
[1756908807946,0.7287873,111520.0,111510.0,1e-08]
[1756908808154,0.8960073,111520.0,111510.0,1e-08]
[1756908808363,0.8930673,111520.0,111510.0,1e-08]
[1756908808574,0.7317273,111520.0,111510.0,1e-08]
[1756908808810,1.05753317,111520.0,111510.0,1e-08]
[1756908808998,0.51938828,111490.0,111480.0,0.0004]
[1756908809215,0.88111459,111490.0,111480.0,0.0004]
[1756908809430,0.71638726,111490.0,111480.0,0.00568]
[1756908809639,1.36031906,111490.0,111480.0,0.00568]
[1756908809861,0.84557694,111490.0,111480.0,0.00568]
[1756908810105,0.61157694,111490.0,111480.0,0.00568]
[1756908810366,1.39968992,111490.0,111480.0,0.00568]
[1756908810752,1.40068992,111490.0,111480.0,0.00568]
[1756908810959,0.77769694,111490.0,111480.0,0.00568]
[1756908811378,0.85140421,111490.0,111480.0,0.00568]
[1756908811591,1.47439719,111490.0,111480.0,0.00568]
[1756908812024,1.47439719,111490.0,111480.0,0.00668]
[1756908812466,1.47439719,111490.0,111480.0,0.0035]
[1756908812696,1.47439719,111490.0,111480.0,0.00668]
[1756908813142,0.85140421,111490.0,111480.0,0.00668]
[1756908813359,1.49533601,111490.0,111480.0,0.00668]
[1756908813821,1.50027601,111490.0,111480.0,1e-08]
[1756908814113,1.65150465,111490.0,111480.0,1e-08]
[1756908814346,1.77202564,111490.0,111480.0,1e-08]
[1756908814558,1.67494656,111490.0,111480.0,1e-08]
[1756908814970,1.51882656,111490.0,111480.0,1e-08]
[1756908815193,0.79290771,111490.0,111480.0,1e-08]
[1756908815406,0.79290771,111490.0,111440.0,0.00318]
[1756908815407,0.54037538,111460.0,111440.0,0.00318]
[1756908815622,0.34,111440.0,111430.0,0.07354631]
[1756908815836,0.43191599,111440.0,111430.0,0.25303118]
[1756908816062,0.61164328,111440.0,111430.0,0.0021]
[1756908816280,1.42117508,111440.0,111430.0,0.0021]
[1756908816491,1.51309107,111440.0,111430.0,0.00528]
[1756908816738,0.51951709,111410.0,111400.0,0.00155143]
[1756908816956,1.40078606,111410.0,111400.0,0.0016915]
[1756908817178,1.40078606,111410.0,111400.0,0.0037915]
[1756908817387,1.46228679,111410.0,111400.0,0.0069715]
[1756908817599,0.43191599,111410.0,111400.0,0.18650471]
[1756908817804,0.34,111410.0,111400.0,0.18650471]
[1756908818251,0.34,111430.0,111420.0,0.17950098]
[1756908818474,0.00025852,111440.0,111430.0,0.17948487]
[1756908818692,0.17972729,111440.0,111430.0,0.00494]
[1756908818903,0.00025852,111440.0,111430.0,0.17948487]
[1756908819155,0.00025852,111440.0,111430.0,0.80658141]
[1756908819378,0.00025852,111440.0,111430.0,0.83067785]
[1756908819596,0.00025852,111440.0,111430.0,0.92259384]
[1756908819800,0.00025852,111440.0,111430.0,1.32259384]
[1756908820431,0.00025852,111440.0,111430.0,1.48887384]
[1756908820684,0.17972729,111440.0,111430.0,0.56802]
[1756908820887,0.51972729,111440.0,111430.0,0.58134487]
[1756908821097,0.34225852,111440.0,111430.0,0.74862487]
[1756908821305,0.34325852,111440.0,111430.0,0.75262487]
[1756908821482,0.34125852,111440.0,111430.0,1.37561785]
[1756908821726,0.34125852,111440.0,111430.0,1.37569785]
[1756908821910,0.00225852,111440.0,111430.0,1.20549785]
[1756908822108,0.00225852,111440.0,111430.0,1.37165785]
[1756908822380,0.00225852,111440.0,111430.0,1.46357384]
[1756908822593,0.00325852,111440.0,111430.0,0.75466487]
[1756908822817,0.18272729,111440.0,111430.0,0.40902]
[1756908823048,0.00325852,111440.0,111430.0,0.75454487]
[1756908823258,0.00325852,111440.0,111430.0,1.46945384]
[1756908823471,0.00325852,111440.0,111430.0,0.68042086]
[1756908823691,0.00325852,111440.0,111430.0,0.84646086]
[1756908823925,0.00325852,111440.0,111430.0,0.68042086]
[1756908824145,0.00325852,111440.0,111430.0,0.84642086]
[1756908824625,0.00325852,111440.0,111430.0,1.30341384]
[1756908824858,0.00325852,111440.0,111430.0,1.46941384]
[1756908825103,0.00325852,111440.0,111430.0,0.58850487]
[1756908825323,0.00325852,111440.0,111430.0,0.75458487]
[1756908826446,0.00325852,111440.0,111430.0,1.46949384]
[1756908826678,0.00325852,111440.0,111430.0,0.68042086]
[1756908826905,0.00325852,111440.0,111430.0,0.58734487]
[1756908827145,0.18472739,111440.0,111430.0,0.40786]
[1756908827360,0.18272729,111440.0,111430.0,0.58734487]
[1756908827605,0.00522852,111440.0,111430.0,0.18548487]
[1756908827826,1.24476636,111440.0,111430.0,0.006]